fUSD/lending_fUSD_20250415
["ID","MTS","AMOUNT","RATE_DAILY","PERIOD"]
[358075582,1744695040200,-98.33056756,0.00017999,2]
[358075583,1744695040212,-401.66943244,0.00017999,2]
[358075584,1744695040222,-22.52433825,0.00017999,2]
[358075585,1744695040234,-477.47566175,0.00017999,2]
[358075586,1744695040243,-500.0,0.00017999,2]
[358075587,1744695040253,-500.0,0.00017999,2]
[358075588,1744695040263,-440.57,0.00017999,2]
[358075589,1744695040273,-500.0,0.00017999,2]
[358075590,1744695040282,-500.0,0.00017999,2]
[358075591,1744695040292,-706.93,0.00017999,2]
[358075592,1744695040301,-499.12135439,0.00017999,2]
[358075593,1744695040314,-207.80864561,0.00017999,2]
[358075594,1744695040323,-706.93,0.00017999,2]
[358075595,1744695040333,-325.96355103,0.00017999,2]
[358075607,1744695042965,-865.0,0.00017884,2]
[358075608,1744695042975,-1176.17683024,0.000179,2]
[358075609,1744695042985,-380.96644897,0.00017999,2]
[358075610,1744695042994,-706.93,0.00017999,2]
[358075611,1744695043004,-706.93,0.00017999,2]
[358075612,1744695043014,-706.93,0.00017999,2]
[358075613,1744695043024,-706.93,0.00017999,2]
[358075614,1744695043033,-706.93,0.00017999,2]
[358075615,1744695043042,-706.93,0.00017999,2]
[358075616,1744695043052,-706.93,0.00017999,2]
[358075617,1744695043062,-505.23530305,0.00017999,2]
[358075618,1744695043073,-201.69469695,0.00017999,2]
[358075619,1744695043083,-471.92030325,0.00017999,2]
[358075620,1744695044828,-235.00969675,0.00017999,2]
[358075621,1744695044837,-599.155303,0.00017999,2]
[358075622,1744695045001,-107.774697,0.00017999,2]
[358075623,1744695045011,-706.93,0.00017999,2]
[358075624,1744695045020,-144.26249111,0.00017999,2]
[358075626,1744695045816,-562.66750889,0.00017999,2]
[358075627,1744695045827,-706.93,0.00017999,2]
[358075628,1744695045837,-696.21540439,0.00017999,2]
[358075629,1744695045938,-10.71459561,0.00017999,2]
[358075630,1744695045948,-706.93,0.00017999,2]
[358075631,1744695045958,-706.93,0.00017999,2]
[358075632,1744695045968,-706.93,0.00017999,2]
[358075633,1744695045979,-706.93,0.00017999,2]
[358075634,1744695045988,-706.93,0.00017999,2]
[358075635,1744695045998,-707.15,0.00017999,2]
[358075636,1744695046008,-204.73883488,0.00017999,2]
[358075637,1744695046018,-500.0,0.00017999,2]
[358075638,1744695046028,-500.0,0.00017999,2]
[358075639,1744695046037,-500.0,0.00017999,2]
[358075640,1744695046047,-500.0,0.00017999,2]
[358075641,1744695046056,-500.0,0.00017999,2]
[358075642,1744695046066,-364.06,0.00017999,2]
[358075643,1744695046076,-246.21208624,0.00017999,2]
[358075644,1744695046086,-500.0,0.00017999,2]
[358075645,1744695046095,-510.59862649,0.00017999,2]
[358075646,1744695046105,-519.17,0.00017999,2]
[358075647,1744695046114,-500.0,0.00017999,2]
[358075648,1744695046124,-496.45855222,0.00017999,2]
[358075649,1744695046134,-500.0,0.00017999,2]
[358075650,1744695046145,-296.70730456,0.00017999,2]
[358075651,1744695046160,-203.29269544,0.00017999,2]
[358075652,1744695046169,-500.0,0.00017999,2]
[358075653,1744695046178,-198.60730456,0.00017999,2]
[358075656,1744695436218,-1330.0,0.00043558,60]
[358075657,1744695436246,-50000.0,0.00043558,30]
[358075658,1744695436274,-50000.0,0.00043558,31]
[358075659,1744695436302,-50000.0,0.00043558,32]
[358075660,1744695436331,-50000.0,0.00043558,33]
[358075661,1744695436360,-50000.0,0.00043558,34]
[358075662,1744695436386,-500.0,0.00043558,60]
[358075663,1744695436411,-500.0,0.00043558,60]
[358075664,1744695436436,-500.0,0.00043558,60]
[358075665,1744695436468,-500.0,0.00043558,60]
[358075666,1744695436494,-500.0,0.00043558,60]
[358075667,1744695436518,-624.07780148,0.00043558,60]
[358075668,1744695436544,-500.0,0.00043558,60]
[358075669,1744695436569,-500.0,0.00043558,60]
[358075670,1744695436594,-500.0,0.00043558,60]
[358075671,1744695436621,-500.0,0.00043558,60]
[358075672,1744695436646,-500.0,0.00043558,60]
[358075673,1744695436672,-500.0,0.00043558,60]
[358075674,1744695436697,-500.0,0.00043558,60]
[358075675,1744695436721,-500.0,0.00043558,60]
[358075676,1744695436746,-500.0,0.00043558,60]
[358075677,1744695436772,-525.51902337,0.00043558,60]
[358075678,1744695436802,-1000.0,0.00043558,30]
[358075679,1744695436827,-3084363.5002727,0.00043558,60]
[358075680,1744695436853,-1125.0289247,0.00043558,120]
[358075681,1744695436877,-187.82026776,0.00043558,60]
[358075682,1744695436902,-352.9234682,0.00043558,120]
[358075683,1744695436928,-343.17177399,0.00043558,60]
[358075684,1744695436953,-1400.0,0.00043558,30]
[358075685,1744695436977,-150.0,0.00043558,30]
[358075686,1744695437001,-150.0,0.00043558,120]
[358075687,1744695437026,-100964.0,0.00043558,30]
[358075688,1744695437055,-2000.0,0.00043558,31]
[358075689,1744695437079,-150.0,0.00043558,30]
[358075690,1744695437104,-2809.15804085,0.00043558,60]
[358075691,1744695437130,-74354.56373491,0.00043558,120]
[358075692,1744695437154,-5000.0,0.00043558,120]
[358075693,1744695437178,-186.21249353,0.00043558,60]
[358075694,1744695437206,-1461.57262503,0.00043558,30]
[358075695,1744695437232,-177.44031908,0.00043558,30]
[358075696,1744695437257,-350.77893522,0.00043558,30]
[358075697,1744695437283,-210.0,0.00043558,120]
[358075698,1744695437308,-30000.0,0.00043558,50]
[358075699,1744695437333,-287285.33785997,0.00043558,120]
[358075700,1744695437362,-1146498.89445921,0.00043558,120]
[358075701,1744695441651,-2261192.0350627,0.00043558,120]
[358075702,1744695441679,-403000.0,0.00043558,120]
[358075703,1744695441706,-499435.07981257,0.00043558,30]
[358075704,1744695441734,-80000.0,0.00043558,40]
[358075705,1744695441761,-90000.0,0.00043558,50]
[358075706,1744695441791,-100000.0,0.00043558,50]
[358075707,1744695441821,-10000.0,0.00043558,30]
[358075708,1744695441848,-10000.0,0.00043558,40]
[358075709,1744695441876,-10000.0,0.00043558,50]
[358075710,1744695441903,-20000.0,0.00043558,30]
[358075711,1744695441934,-20000.0,0.00043558,40]
[358075712,1744695441963,-20000.0,0.00043558,50]
[358075713,1744695441990,-30000.0,0.00043558,30]
[358075714,1744695442017,-30000.0,0.00043558,40]
[358075715,1744695442043,-30000.0,0.00043558,50]
[358075716,1744695442069,-40000.0,0.00043558,30]
[358075717,1744695442095,-40000.0,0.00043558,40]
[358075718,1744695442122,-40000.0,0.00043558,50]
[358075719,1744695442149,-50000.0,0.00043558,30]
[358075720,1744695442178,-50000.0,0.00043558,40]
[358075721,1744695442205,-20000.0,0.00043558,30]
[358075722,1744695442231,-1105.1696452,0.00043558,120]
[358075723,1744695442256,-5000.0,0.00043558,34]
[358075724,1744695442284,-36198.08928299,0.00043558,60]
[358075725,1744695442311,-162.47659628,0.00043558,60]
[358075726,1744695442339,-275.41444341,0.00043558,90]
[358075727,1744695442364,-192.19690064,0.00043558,30]
[358075728,1744695442388,-195.46353366,0.00043558,120]
[358075729,1744695442412,-577.62303168,0.00043558,120]
[358075730,1744695442437,-293.19213967,0.00043558,30]
[358075731,1744695442461,-231.3240487,0.00043558,30]
[358075732,1744695442487,-179.41219032,0.00043558,90]
[358075733,1744695442511,-270.22886628,0.00043558,120]
[358075734,1744695442535,-271.58713366,0.00043558,120]
[358075735,1744695442874,-6910.07894725,0.00043558,120]
[358075736,1744695442900,-163.86263684,0.00043558,30]
[358075737,1744695442927,-641.06285715,0.00043558,120]
[358075738,1744695442953,-238.1778057,0.00043558,120]
[358075739,1744695442978,-150.48798244,0.00043558,120]
[358075740,1744695443003,-10096.0,0.00043558,30]
[358075741,1744695443028,-67826.31841979,0.00043558,30]
[358075742,1744695443053,-3056.20528383,0.00043558,120]
[358075743,1744695443078,-756.14320389,0.00043558,120]
[358075744,1744695443102,-2101.59842737,0.00043558,120]
[358075745,1744695443127,-1185.33,0.00043558,120]
[358075746,1744695443152,-286.31339111,0.00043558,120]
[358075747,1744695443175,-3000.0,0.00043558,120]
[358075748,1744695443198,-3000.0,0.00043558,120]
[358075749,1744695443222,-5000.0,0.00043558,31]
[358075750,1744695443244,-5000.0,0.00043558,33]
[358075751,1744695443269,-625144.86350193,0.00043558,120]
[358075752,1744695443293,-150.0,0.00043558,120]
[358075753,1744695443317,-211.881615,0.00043558,120]
[358075754,1744695443342,-10000.0,0.00043558,31]
[358075755,1744695443366,-10057.81532089,0.00043558,120]
[358075756,1744695443391,-6984.68034037,0.00043558,120]
[358075757,1744695443416,-124702.13995654,0.00043558,120]
[358075758,1744695443440,-1103.05754108,0.00043558,120]
[358075759,1744695443465,-154.0,0.00043558,120]
[358075760,1744695443489,-88204.26285862,0.00043558,120]
[358075761,1744695443513,-195.754854,0.00043558,60]
[358075762,1744695443538,-524.0,0.00043558,120]
[358075763,1744695443562,-201.0,0.00043558,120]
[358075764,1744695443587,-290.0,0.00043558,30]
[358075765,1744695443612,-99901.29914251,0.00043558,30]
[358075766,1744695443636,-17390.5616114,0.00043558,30]
[358075767,1744695443661,-6793.81161453,0.00043558,120]
[358075768,1744695445367,155.15,0.00013739,2]
[358075769,1744695446241,-21650.24419486,0.00043558,120]
[358075770,1744695446267,-151.6321258,0.00043558,120]
[358075771,1744695446292,-265.53020382,0.00043558,30]
[358075772,1744695446317,-248.52274488,0.00043558,38]
[358075773,1744695446342,-282.88871386,0.00043558,120]
[358075774,1744695446368,-1068.0,0.00043558,30]
[358075775,1744695446393,-1068.0,0.00043558,30]
[358075776,1744695446417,-1068.0,0.00043558,30]
[358075777,1744695446441,-1068.0,0.00043558,30]
[358075778,1744695446466,-1068.0,0.00043558,30]
[358075779,1744695446490,-217.0,0.00043558,120]
[358075780,1744695446514,-917509.94680793,0.00043558,30]
[358075781,1744695446539,-203.57,0.00043558,120]
[358075782,1744695446563,-533.00087539,0.00043558,120]
[358075783,1744695446587,-547.23751345,0.00043558,120]
[358075784,1744695446611,-2820.50212278,0.00043558,120]
[358075785,1744695446636,-5531.0,0.00043558,30]
[358075786,1744695446660,-203.0,0.00043558,120]
[358075787,1744695446683,-302.75333192,0.00043558,30]
[358075788,1744695446707,-203.82048432,0.00043558,120]
[358075789,1744695446730,-201.73740318,0.00043558,120]
[358075790,1744695446752,-1519.25006653,0.00043558,30]
[358075791,1744695457135,1000.0,0.0001718,2]
[358076924,1744695547114,-200.0,0.00017517,2]
[358076926,1744695547138,-57.99,0.00017519,2]
[358079188,1744695662337,-186.16486842,0.00017519,2]
[358081683,1744695821827,200.0,0.00017164,2]
[358082774,1744695870445,3400.0,0.0001718,2]
[358082776,1744695870474,1600.01,0.0001718,2]
[358082786,1744695871039,-250.0,0.00017519,2]
[358084301,1744695968236,2659.925684,7.945e-05,2]
[358084302,1744695995600,768.9,0.00017185,2]
[358084303,1744695997075,-69.18513158,0.00017519,2]
[358084304,1744695997101,-111.40486842,0.00017519,2]
[358084305,1744696062400,646.25,0.00015251,2]
[358084307,1744696232025,-646.25,0.00017515,2]
[358084308,1744696232037,-880.48,0.00017522,2]
[358084309,1744696232049,-3737.7888513,0.00017807,2]
[358084310,1744696232060,-212.2839073,0.0001782,2]
[358084311,1744696232072,-180.59,0.00017828,2]
[358084312,1744696232085,-159.208365,0.00017894,2]
[358084313,1744696232096,-569.598608,0.00017894,2]
[358084314,1744696232109,-569.598608,0.00017894,2]
[358084315,1744696232121,-938.392217,0.00017894,2]
[358084316,1744696232132,-938.392217,0.00017894,2]
[358084317,1744696232144,-186.1648,0.00017899,2]
[358084318,1744696232155,-539.55414986,0.00017899,2]
[358084319,1744696232166,-784.11788684,0.000179,2]
[358084320,1744696232176,-300.0,0.00017927,2]
[358084321,1744696232189,-1328.0,0.00017928,2]
[358084322,1744696232201,-1288.0,0.00017928,2]
[358084323,1744696232211,-2047.0,0.00017928,2]
[358084324,1744696232223,-799.305,0.00017928,2]
[358084325,1744696232236,-1280.0,0.00017928,2]
[358084326,1744696232248,-1438.0,0.00017928,2]
[358084327,1744696232259,-545.0,0.00017928,2]
[358084328,1744696232270,-908.0,0.00017928,2]
[358084329,1744696232280,-575.0,0.00017928,2]
[358084330,1744696232291,-4149.0,0.00017928,2]
[358084331,1744696232302,-556.73215689,0.00017928,2]
[358084332,1744696232312,-3965.0,0.00017928,2]
[358084333,1744696232323,-865.0,0.00017928,2]
[358084334,1744696232335,-152.0,0.00017928,2]
[358084335,1744696232347,-150.0,0.00017928,2]
[358084336,1744696232358,-349.998,0.00017987,2]
[358084338,1744696232369,-7542.52852055,0.00017988,2]
[358084340,1744696232380,-500.0,0.00017998,2]
[358084342,1744696232391,-493.71918415,0.00017998,2]
[358084344,1744696232401,-511.31050877,0.00017998,2]
[358084346,1744696232412,-558.13906411,0.00017998,2]
[358084348,1744696232424,-500.0,0.00017998,2]
[358084350,1744696232434,-500.0,0.00017998,2]
[358084353,1744696232448,-500.0,0.00017998,2]
[358084355,1744696232459,-363.15,0.00017998,2]
[358084357,1744696232470,-398.93782652,0.00017998,2]
[358084360,1744696232483,-101.06217348,0.00017998,2]
[358084363,1744696232495,-500.0,0.00017998,2]
[358084365,1744696232507,-500.0,0.00017998,2]
[358084367,1744696232518,-101.62069986,0.00017998,2]
[358084371,1744696232548,-398.37930014,0.00017998,2]
[358084373,1744696232559,-217.47628187,0.00017998,2]
[358084377,1744696232580,-282.52371813,0.00017998,2]
[358084379,1744696232591,-500.0,0.00017998,2]
[358084381,1744696232602,-500.0,0.00017998,2]
[358084383,1744696232612,-500.0,0.00017998,2]
[358084385,1744696232623,-500.0,0.00017998,2]
[358084387,1744696232634,-6768.48,0.00017998,2]
[358084389,1744696232646,-500.0,0.00017998,2]
[358084392,1744696232656,-500.0,0.00017998,2]
[358084394,1744696232667,-500.0,0.00017998,2]
[358084396,1744696232678,-467.50721301,0.00017998,2]
[358084398,1744696232689,-699.62,0.00017998,2]
[358084400,1744696232700,-500.0,0.00017998,2]
[358084402,1744696232711,-500.0,0.00017998,2]
[358084404,1744696232721,-755.33,0.00017998,2]
[358084406,1744696232732,-500.0,0.00017998,2]
[358084409,1744696232742,-500.0,0.00017998,2]
[358084411,1744696232752,-500.0,0.00017998,2]
[358084413,1744696232763,-500.0,0.00017998,2]
[358084415,1744696232773,-500.0,0.00017998,2]
[358084417,1744696232783,-500.0,0.00017998,2]
[358084419,1744696232794,-500.0,0.00017998,2]
[358084421,1744696232805,-500.0,0.00017998,2]
[358084423,1744696232816,-500.0,0.00017998,2]
[358084425,1744696232826,-500.0,0.00017998,2]
[358084428,1744696232836,-500.0,0.00017998,2]
[358084430,1744696232847,-500.0,0.00017998,2]
[358084432,1744696232857,-2055.02,0.00017998,2]
[358084434,1744696232868,-63.45580316,0.00017998,2]
[358084457,1744696233122,-436.54419684,0.00017998,2]
[358084458,1744696233133,-500.0,0.00017998,2]
[358084459,1744696233145,-500.0,0.00017998,2]
[358084460,1744696233156,-211.68356587,0.00017998,2]
[358084461,1744696233173,-290.76001903,0.00017998,2]
[358084462,1744696233189,-408.28058477,0.00017998,2]
[358084512,1744696238180,-91.71941523,0.00017998,2]
[358084513,1744696238192,-500.0,0.00017998,2]
[358084514,1744696238201,-510.1015538,0.00017998,2]
[358084515,1744696238212,-327.82278233,0.00017998,2]
[358084516,1744696238225,-172.17721767,0.00017998,2]
[358084517,1744696238235,-255.06182635,0.00017998,2]
[358084518,1744696238247,-244.93817365,0.00017998,2]
[358084519,1744696238256,-500.0,0.00017998,2]
[358084520,1744696238266,-500.0,0.00017998,2]
[358084521,1744696238276,-480.21035082,0.00017998,2]
[358084522,1744696238287,-53.35906039,0.00017998,2]
[358084523,1744696238297,-500.0,0.00017998,2]
[358084524,1744696238312,-500.0,0.00017998,2]
[358084525,1744696238321,-503.85131081,0.00017998,2]
[358084526,1744696238332,-189.95,0.00017998,2]
[358084527,1744696238341,-182.44078616,0.00017998,2]
[358084528,1744696238353,-317.55921384,0.00017998,2]
[358084529,1744696238362,-219.43269544,0.00017998,2]
[358084530,1744696238371,-500.0,0.00017998,2]
[358084531,1744696238385,-500.0,0.00017998,2]
[358084532,1744696238395,-500.0,0.00017998,2]
[358084533,1744696238404,-500.0,0.00017998,2]
[358084534,1744696238414,-325.07420577,0.00017998,2]
[358084535,1744696238424,-500.0,0.00017998,2]
[358084536,1744696238433,-334.67813536,0.00017999,2]
[358084537,1744696238442,-188.67801752,0.00017999,2]
[358084538,1744696238451,-200.0,0.00017999,2]
[358084539,1744696238460,-500.0,0.00017999,2]
[358084540,1744696238469,-531.91109091,0.00017999,2]
[358084541,1744696238480,-500.0,0.00017999,2]
[358084542,1744696238489,-2000.0,0.00017999,2]
[358084543,1744696238498,-2000.0,0.00017999,2]
[358084544,1744696238507,-2000.0,0.00017999,2]
[358084545,1744696238517,-2000.0,0.00017999,2]
[358084546,1744696238526,-2000.0,0.00017999,2]
[358084547,1744696238535,-2000.0,0.00017999,2]
[358084548,1744696238544,-2000.0,0.00017999,2]
[358084549,1744696238554,-2000.0,0.00017999,2]
[358084550,1744696238563,-929.60669882,0.00017999,2]
[358084551,1744696238573,-500.0,0.00017999,2]
[358084552,1744696238582,-521.23222812,0.00017999,2]
[358084553,1744696238591,-500.0,0.00017999,2]
[358084554,1744696238601,-500.0,0.00017999,2]
[358084555,1744696238610,-524.08487568,0.00017999,2]
[358084556,1744696238620,-1000.0,0.00017999,2]
[358084557,1744696238629,-500.0,0.00017999,2]
[358084560,1744696238639,-536.75249254,0.00017999,2]
[358084562,1744696238648,-497.13452838,0.00017999,2]
[358084564,1744696238657,-512.7784685,0.00017999,2]
[358084566,1744696238667,-508.38452348,0.00017999,2]
[358084568,1744696238676,-535.15180415,0.00017999,2]
[358084570,1744696238685,-512.80684232,0.00017999,2]
[358084572,1744696238694,-151.0,0.00017999,2]
[358084574,1744696238703,-1000.0,0.00017999,2]
[358084576,1744696238713,-500.0,0.00017999,2]
[358084578,1744696238723,-326.03421326,0.00017999,2]
[358084580,1744696238733,-500.0,0.00017999,2]
[358084582,1744696238742,-500.0,0.00017999,2]
[358084584,1744696238753,-292.98394296,0.00017999,2]
[358084586,1744696238762,-500.0,0.00017999,2]
[358084588,1744696238772,-500.0,0.00017999,2]
[358084590,1744696238782,-502.27986515,0.00017999,2]
[358084592,1744696238793,-500.0,0.00017999,2]
[358084594,1744696238803,-500.0,0.00017999,2]
[358084596,1744696238813,-500.0,0.00017999,2]
[358084598,1744696238823,-500.0,0.00017999,2]
[358084600,1744696238833,-500.0,0.00017999,2]
[358084602,1744696238842,-500.0,0.00017999,2]
[358084604,1744696238851,-500.0,0.00017999,2]
[358084606,1744696238860,-500.0,0.00017999,2]
[358084608,1744696238870,-500.0,0.00017999,2]
[358084610,1744696238880,-500.0,0.00017999,2]
[358084612,1744696238889,-500.0,0.00017999,2]
[358084614,1744696238898,-500.0,0.00017999,2]
[358084616,1744696238907,-500.0,0.00017999,2]
[358084618,1744696238916,-500.0,0.00017999,2]
[358084620,1744696238927,-500.0,0.00017999,2]
[358084622,1744696238937,-500.0,0.00017999,2]
[358084624,1744696238946,-500.0,0.00017999,2]
[358084626,1744696238956,-500.0,0.00017999,2]
[358084628,1744696238966,-500.0,0.00017999,2]
[358084630,1744696238975,-500.0,0.00017999,2]
[358084632,1744696238984,-500.0,0.00017999,2]
[358084634,1744696238994,-500.0,0.00017999,2]
[358084635,1744696239004,-500.0,0.00017999,2]
[358084636,1744696239014,-500.0,0.00017999,2]
[358084637,1744696239023,-500.0,0.00017999,2]
[358084638,1744696239033,-611.93589353,0.00017999,2]
[358084639,1744696239043,-500.0,0.00017999,2]
[358084640,1744696239052,-500.0,0.00017999,2]
[358084641,1744696239062,-500.0,0.00017999,2]
[358084642,1744696239071,-500.0,0.00017999,2]
[358084643,1744696239081,-500.0,0.00017999,2]
[358084644,1744696239091,-500.0,0.00017999,2]
[358084645,1744696239100,-500.0,0.00017999,2]
[358084646,1744696239111,-500.0,0.00017999,2]
[358084647,1744696239120,-500.0,0.00017999,2]
[358084648,1744696239130,-500.0,0.00017999,2]
[358084649,1744696239140,-500.0,0.00017999,2]
[358084650,1744696239150,-197.28568516,0.00017999,2]
[358084651,1744696239159,-500.0,0.00017999,2]
[358084652,1744696239168,-500.0,0.00017999,2]
[358084653,1744696239178,-500.0,0.00017999,2]
[358084654,1744696239191,-500.0,0.00017999,2]
[358084655,1744696239200,-500.0,0.00017999,2]
[358084656,1744696239210,-500.0,0.00017999,2]
[358084657,1744696239220,-500.0,0.00017999,2]
[358084658,1744696239231,-500.0,0.00017999,2]
[358084659,1744696239241,-500.0,0.00017999,2]
[358084660,1744696239250,-500.0,0.00017999,2]
[358084661,1744696239260,-500.0,0.00017999,2]
[358084662,1744696239270,-500.0,0.00017999,2]
[358084663,1744696239279,-500.0,0.00017999,2]
[358084664,1744696239289,-500.0,0.00017999,2]
[358084665,1744696239299,-500.0,0.00017999,2]
[358084666,1744696239308,-500.0,0.00017999,2]
[358084667,1744696239318,-554.19,0.00017999,2]
[358084668,1744696239327,-500.0,0.00017999,2]
[358084669,1744696239337,-500.0,0.00017999,2]
[358084670,1744696239346,-500.0,0.00017999,2]
[358084671,1744696239356,-500.0,0.00017999,2]
[358084672,1744696239365,-500.0,0.00017999,2]
[358084673,1744696239375,-500.0,0.00017999,2]
[358084674,1744696239384,-500.0,0.00017999,2]
[358084675,1744696239393,-500.0,0.00017999,2]
[358084676,1744696239404,-500.0,0.00017999,2]
[358084677,1744696239414,-500.0,0.00017999,2]
[358084678,1744696239423,-500.0,0.00017999,2]
[358084679,1744696239432,-500.0,0.00017999,2]
[358084680,1744696239441,-500.0,0.00017999,2]
[358084681,1744696239452,-500.0,0.00017999,2]
[358084682,1744696239462,-500.0,0.00017999,2]
[358084683,1744696239471,-500.0,0.00017999,2]
[358084684,1744696239480,-500.0,0.00017999,2]
[358084685,1744696239490,-317.01,0.00017999,2]
[358084686,1744696239499,-500.0,0.00017999,2]
[358084687,1744696239508,-500.0,0.00017999,2]
[358084688,1744696239518,-500.0,0.00017999,2]
[358084689,1744696239527,-500.0,0.00017999,2]
[358084690,1744696239537,-280.98,0.00017999,2]
[358084691,1744696239547,-500.0,0.00017999,2]
[358084692,1744696239557,-500.0,0.00017999,2]
[358084693,1744696239567,-500.0,0.00017999,2]
[358084694,1744696239577,-500.0,0.00017999,2]
[358084695,1744696239586,-500.0,0.00017999,2]
[358084696,1744696239596,-500.0,0.00017999,2]
[358084697,1744696239605,-500.0,0.00017999,2]
[358084698,1744696239616,-500.0,0.00017999,2]
[358084699,1744696239626,-500.0,0.00017999,2]
[358084700,1744696239636,-500.0,0.00017999,2]
[358084701,1744696239645,-500.0,0.00017999,2]
[358084702,1744696239655,-500.0,0.00017999,2]
[358084703,1744696239664,-500.0,0.00017999,2]
[358084704,1744696239673,-500.0,0.00017999,2]
[358084705,1744696239683,-500.0,0.00017999,2]
[358084706,1744696239693,-500.0,0.00017999,2]
[358084707,1744696239702,-500.0,0.00017999,2]
[358084708,1744696239712,-500.0,0.00017999,2]
[358084709,1744696239723,-203.97191187,0.00017999,2]
[358084710,1744696239732,-649.76,0.00017999,2]
[358084711,1744696239743,-649.76,0.00017999,2]
[358084712,1744696239752,-649.76,0.00017999,2]
[358084713,1744696239762,-649.76,0.00017999,2]
[358084714,1744696239772,-649.76,0.00017999,2]
[358084715,1744696239782,-649.76,0.00017999,2]
[358084716,1744696239792,-649.76,0.00017999,2]
[358084717,1744696239803,-649.76,0.00017999,2]
[358084718,1744696239812,-649.76,0.00017999,2]
[358084719,1744696239822,-649.76,0.00017999,2]
[358084720,1744696239832,-649.76,0.00017999,2]
[358084721,1744696239842,-649.76,0.00017999,2]
[358084723,1744696239851,-649.76,0.00017999,2]
[358084725,1744696239861,-649.76,0.00017999,2]
[358084727,1744696239871,-649.76,0.00017999,2]
[358084729,1744696239881,-649.76,0.00017999,2]
[358084731,1744696239890,-649.76,0.00017999,2]
[358084733,1744696239900,-649.76,0.00017999,2]
[358084734,1744696239910,-649.76,0.00017999,2]
[358084735,1744696239920,-649.76,0.00017999,2]
[358084736,1744696239930,-649.76,0.00017999,2]
[358084737,1744696239940,-649.76,0.00017999,2]
[358084738,1744696239949,-649.76,0.00017999,2]
[358084739,1744696239959,-649.81611256,0.00017999,2]
[358084740,1744696239969,-545.47,0.00017999,2]
[358084743,1744696239978,-545.47,0.00017999,2]
[358084745,1744696239988,-545.47,0.00017999,2]
[358084747,1744696239998,-545.47,0.00017999,2]
[358084748,1744696240007,-545.47,0.00017999,2]
[358084750,1744696240018,-545.47,0.00017999,2]
[358084751,1744696240028,-545.47,0.00017999,2]
[358084753,1744696240038,-545.47,0.00017999,2]
[358084755,1744696240048,-545.47,0.00017999,2]
[358084757,1744696240058,-545.47,0.00017999,2]
[358084758,1744696240068,-545.47,0.00017999,2]
[358084759,1744696240078,-545.47,0.00017999,2]
[358084760,1744696240087,-545.47,0.00017999,2]
[358084761,1744696240097,-545.47,0.00017999,2]
[358084762,1744696240107,-545.47,0.00017999,2]
[358084763,1744696240116,-545.47,0.00017999,2]
[358084764,1744696240126,-545.47,0.00017999,2]
[358084765,1744696240137,-545.47,0.00017999,2]
[358084766,1744696240147,-545.47,0.00017999,2]
[358084767,1744696240157,-545.47,0.00017999,2]
[358084768,1744696240167,-545.47,0.00017999,2]
[358084769,1744696240177,-545.47,0.00017999,2]
[358084770,1744696240192,-545.47,0.00017999,2]
[358084771,1744696240202,-500.0,0.00017999,2]
[358084772,1744696240211,-545.47,0.00017999,2]
[358084773,1744696240222,-952.64,0.00017999,2]
[358084774,1744696240232,-952.64,0.00017999,2]
[358084775,1744696240242,-952.64,0.00017999,2]
[358084776,1744696240251,-952.64,0.00017999,2]